fUST/lending_fUST_20251004
["ID","MTS","AMOUNT","RATE_DAILY","PERIOD"]
[389142867,1759590657893,-500.0,0.00019726,2]
[389142868,1759590657902,-292.05299158,0.00019726,2]
[389142869,1759590657912,-500.0,0.00019726,2]
[389142870,1759590657921,-1341.41,0.00019726,2]
[389142871,1759590657931,-503.24,0.00019726,2]
[389142872,1759590657941,-2415.19,0.00019726,2]
[389142873,1759590657950,-4325.59,0.00019726,2]
[389142874,1759590657959,-500.0,0.00019726,2]
[389142875,1759590657969,-500.0,0.00019726,2]
[389142876,1759590657978,-151.0,0.00019726,2]
[389142877,1759590657988,-2117.6,0.00019726,2]
[389142878,1759590657997,-156.34048286,0.00019726,2]
[389142879,1759590658007,-616.75,0.00019726,2]
[389142880,1759590658016,-500.0,0.00019726,2]
[389142881,1759590658025,-152.74892,0.00019726,2]
[389142882,1759590658035,-894.18,0.00019726,2]
[389142883,1759590658045,-626.258136,0.00019726,2]
[389142884,1759590658054,-626.258136,0.00019726,2]
[389142885,1759590658063,-500.0,0.00019726,2]
[389142886,1759590658072,-626.258136,0.00019726,2]
[389142887,1759590658082,-626.258136,0.00019726,2]
[389142888,1759590658091,-6808.25,0.00019726,2]
[389142889,1759590658101,-646.89,0.00019726,2]
[389142890,1759590658115,-276.382728,0.00019726,2]
[389142891,1759590658124,-500.0,0.00019726,2]
[389142892,1759590658133,-1219.82,0.00019726,2]
[389142893,1759590658143,-9676.674595,0.00019726,2]
[389142894,1759590658152,-151.0,0.00019726,2]
[389142895,1759590658161,-276.382728,0.00019726,2]
[389142896,1759590658171,-766.0,0.00019726,2]
[389142897,1759590658180,-576.19,0.00019726,2]
[389142898,1759590658190,-276.382728,0.00019726,2]
[389142899,1759590658199,-9676.674595,0.00019726,2]
[389142900,1759590658209,-151.0,0.00019726,2]
[389142901,1759590658219,-151.0,0.00019726,2]
[389142902,1759590658228,-276.382728,0.00019726,2]
[389142903,1759590658238,-9676.674595,0.00019726,2]
[389142904,1759590658248,-501.11,0.00019726,2]
[389142905,1759590658257,-151.0,0.00019726,2]
[389142906,1759590658266,-500.0,0.00019726,2]
[389142907,1759590658276,-151.0,0.00019726,2]
[389142908,1759590658286,-9676.674595,0.00019726,2]
[389142909,1759590658296,-308.588538,0.00019726,2]
[389142910,1759590658306,-151.0,0.00019726,2]
[389142911,1759590658315,-253.63267838,0.00019726,2]
[389142913,1759590658325,-838.57,0.00019726,2]
[389142914,1759590658334,-308.588538,0.00019726,2]
[389142915,1759590658344,-500.0,0.00019726,2]
[389142916,1759590658354,-308.588538,0.00019726,2]
[389142917,1759590658363,-1612.24,0.00019726,2]
[389142918,1759590658374,-500.0,0.00019726,2]
[389142919,1759590658383,-308.588538,0.00019726,2]
[389142920,1759590658393,-223.459985,0.00019726,2]
[389142921,1759590658403,-500.0,0.00019726,2]
[389142922,1759590658412,-151.0,0.00019726,2]
[389142923,1759590658422,-237.95586481,0.00019726,2]
[389142924,1759590658431,-223.459985,0.00019726,2]
[389142925,1759590658440,-151.0,0.00019726,2]
[389142926,1759590658450,-223.459985,0.00019726,2]
[389142927,1759590658459,-151.0,0.00019726,2]
[389142928,1759590658469,-500.0,0.00019726,2]
[389142929,1759590658478,-151.0,0.00019726,2]
[389142930,1759590658488,-223.459985,0.00019726,2]
[389142931,1759590658498,-500.0,0.00019726,2]
[389142932,1759590658508,-151.0,0.00019726,2]
[389142933,1759590658518,-1409.27,0.00019726,2]
[389142934,1759590658527,-428.21618788,0.00019726,2]
[389142935,1759590658537,-151.0,0.00019726,2]
[389142936,1759590658546,-1345.42,0.00019726,2]
[389142937,1759590658556,-990.0,0.00019726,2]
[389142938,1759590658565,-500.0,0.00019726,2]
[389142939,1759590658575,-500.0,0.00019726,2]
[389142940,1759590658589,-151.0,0.00019726,2]
[389142941,1759590658599,-923.15,0.00019726,2]
[389142942,1759590658608,-1493.73,0.00019726,2]
[389142943,1759590658618,-438.31,0.00019726,2]
[389142944,1759590658627,-151.0,0.00019726,2]
[389142945,1759590658636,-500.0,0.00019726,2]
[389142946,1759590658646,-500.0,0.00019726,2]
[389142947,1759590658656,-500.0,0.00019726,2]
[389142948,1759590658665,-151.0,0.00019726,2]
[389142949,1759590658674,-198.31,0.00019726,2]
[389142950,1759590658684,-542.59,0.00019726,2]
[389142951,1759590658694,-763.547667,0.00019726,2]
[389142952,1759590658703,-500.0,0.00019726,2]
[389142953,1759590658713,-1082.9,0.00019726,2]
[389142954,1759590658722,-151.0,0.00019726,2]
[389142955,1759590658731,-763.547667,0.00019726,2]
[389142956,1759590658740,-1072.6,0.00019726,2]
[389142957,1759590658750,-500.0,0.00019726,2]
[389142958,1759590658759,-500.0,0.00019726,2]
[389142959,1759590658768,-1043.25,0.00019726,2]
[389142960,1759590658777,-763.547667,0.00019726,2]
[389142961,1759590658787,-500.0,0.00019726,2]
[389142962,1759590658796,-1131.17,0.00019726,2]
[389142963,1759590658805,-151.0,0.00019726,2]
[389142964,1759590658814,-763.547667,0.00019726,2]
[389142965,1759590658823,-2361.16,0.00019726,2]
[389142966,1759590658835,-500.0,0.00019726,2]
[389142967,1759590658844,-500.0,0.00019726,2]
[389142968,1759590658853,-500.0,0.00019726,2]
[389142969,1759590658862,-5225.58,0.00019726,2]
[389142970,1759590658872,-500.0,0.00019726,2]
[389142971,1759590658881,-985.70328,0.00019726,2]
[389142972,1759590658890,-500.0,0.00019726,2]
[389142973,1759590658900,-985.70328,0.00019726,2]
[389142974,1759590658909,-151.0,0.00019726,2]
[389142975,1759590658919,-472.52244,0.00019726,2]
[389142976,1759590658928,-151.0,0.00019726,2]
[389142977,1759590658938,-985.70328,0.00019726,2]
[389142978,1759590658947,-472.52244,0.00019726,2]
[389142979,1759590658956,-151.0,0.00019726,2]
[389142980,1759590658966,-151.0,0.00019726,2]
[389142981,1759590658976,-500.0,0.00019726,2]
[389142982,1759590658985,-985.70328,0.00019726,2]
[389142983,1759590658995,-472.52244,0.00019726,2]
[389142984,1759590659008,-151.0,0.00019726,2]
[389142985,1759590659017,-151.0,0.00019726,2]
[389142986,1759590659027,-472.52244,0.00019726,2]
[389142987,1759590659036,-151.0,0.00019726,2]
[389142988,1759590659046,-414.143484,0.00019726,2]
[389142989,1759590659055,-500.0,0.00019726,2]
[389142990,1759590659065,-500.0,0.00019726,2]
[389142991,1759590659074,-1448.44,0.00019726,2]
[389142992,1759590659084,-511.73,0.00019726,2]
[389142993,1759590659094,-414.143484,0.00019726,2]
[389142994,1759590659104,-151.0,0.00019726,2]
[389142995,1759590659121,-632.45,0.00019726,2]
[389142996,1759590659131,-500.0,0.00019726,2]
[389142997,1759590659141,-606.37,0.00019726,2]
[389142998,1759590659152,-414.143484,0.00019726,2]
[389142999,1759590659161,-500.0,0.00019726,2]
[389143000,1759590659171,-414.143484,0.00019726,2]
[389143001,1759590659180,-1452.17,0.00019726,2]
[389143002,1759590659190,-151.0,0.00019726,2]
[389143003,1759590659200,-647.03,0.00019726,2]
[389143004,1759590659209,-1921.468988,0.00019726,2]
[389143005,1759590659218,-151.0,0.00019726,2]
[389143006,1759590659228,-326.305215,0.00019726,2]
[389143007,1759590659237,-1921.468988,0.00019726,2]
[389143008,1759590659246,-500.0,0.00019726,2]
[389143009,1759590659257,-151.0,0.00019726,2]
[389143010,1759590659266,-326.305215,0.00019726,2]
[389143011,1759590659276,-6915.55,0.00019726,2]
[389143012,1759590659285,-500.0,0.00019726,2]
[389143013,1759590659294,-1921.468988,0.00019726,2]
[389143014,1759590659303,-326.305215,0.00019726,2]
[389143015,1759590659312,-151.0,0.00019726,2]
[389143016,1759590659323,-1921.468988,0.00019726,2]
[389143017,1759590659333,-550.847156,0.00019726,2]
[389143018,1759590659342,-326.305215,0.00019726,2]
[389143019,1759590659352,-500.0,0.00019726,2]
[389143020,1759590659361,-2266.98,0.00019726,2]
[389143021,1759590659371,-550.847156,0.00019726,2]
[389143022,1759590659380,-3328.29,0.00019726,2]
[389143023,1759590659389,-500.0,0.00019726,2]
[389143024,1759590659399,-550.847156,0.00019726,2]
[389143025,1759590659409,-500.0,0.00019726,2]
[389143026,1759590659418,-550.847156,0.00019726,2]
[389143027,1759590659428,-500.0,0.00019726,2]
[389143028,1759590659438,-500.0,0.00019726,2]
[389143029,1759590659448,-1023.24,0.00019726,2]
[389143030,1759590659458,-151.199924,0.00019726,2]
[389143031,1759590659468,-500.0,0.00019726,2]
[389143032,1759590659478,-1262.25,0.00019726,2]
[389143033,1759590659488,-500.0,0.00019726,2]
[389143034,1759590659498,-481.79417268,0.00019726,2]
[389143035,1759590659507,-6120.99,0.00019726,2]
[389143036,1759590659516,-3854.46,0.00019726,2]
[389143037,1759590659526,-632.01,0.00019726,2]
[389143038,1759590659535,-256.27063163,0.00019726,2]
[389143039,1759590659544,-500.0,0.00019726,2]
[389143040,1759590659553,-1243.803981,0.00019726,2]
[389143041,1759590659563,-500.0,0.00019726,2]
[389143042,1759590659573,-1243.803981,0.00019726,2]
[389143043,1759590659582,-500.0,0.00019726,2]
[389143044,1759590659591,-500.0,0.00019726,2]
[389143045,1759590659601,-1243.803981,0.00019726,2]
[389143046,1759590659610,-500.0,0.00019726,2]
[389143047,1759590659619,-151.0,0.00019726,2]
[389143048,1759590659628,-1243.803981,0.00019726,2]
[389143049,1759590659637,-324.07,0.00019726,2]
[389143050,1759590659646,-154.157323,0.00019726,2]
[389143051,1759590659656,-500.0,0.00019726,2]
[389143052,1759590659665,-151.0,0.00019726,2]
[389143053,1759590659674,-1031.38,0.00019726,2]
[389143054,1759590659683,-500.0,0.00019726,2]
[389143055,1759590659692,-1428.16,0.00019726,2]
[389143056,1759590659701,-1606.82,0.00019726,2]
[389143057,1759590659710,-826.478215,0.00019726,2]
[389143058,1759590659719,-156.868159,0.00019726,2]
[389143059,1759590659728,-151.0,0.00019726,2]
[389143060,1759590659738,-917.5,0.00019726,2]
[389143061,1759590659747,-826.478215,0.00019726,2]
[389143062,1759590659757,-500.0,0.00019726,2]
[389143063,1759590659766,-4600.4,0.00019726,2]
[389143064,1759590659775,-551.75,0.00019726,2]
[389143065,1759590659784,-821.33,0.00019726,2]
[389143066,1759590659793,-151.0,0.00019726,2]
[389143067,1759590659802,-826.478215,0.00019726,2]
[389143068,1759590659812,-500.0,0.00019726,2]
[389143069,1759590659822,-246.005085,0.00019726,2]
[389143070,1759590659831,-500.0,0.00019726,2]
[389143071,1759590659840,-826.478215,0.00019726,2]
[389143072,1759590659849,-555.75988534,0.00019773,2]
[389143073,1759590659858,-584.62874235,0.00019773,2]
[389143074,1759590659868,-500.0,0.00019773,2]
[389143075,1759590659877,-361.422,0.00019796,2]
[389143076,1759590659887,-151.0,0.000198,2]
[389143077,1759590659896,-166.0,0.00019868,2]
[389143078,1759590659905,-151.0,0.000199,2]
[389143079,1759590659915,-10453.01450712,0.000199,2]
[389143080,1759590659924,-500.0,0.00019901,2]
[389143081,1759590659935,-500.0,0.00019933,2]
[389143082,1759590659945,-1508.77884162,0.00019968,2]
[389143083,1759590659954,-1500.0,0.00019968,2]
[389143084,1759590659964,-271.96001525,0.00019968,2]
[389143085,1759590659975,-1500.0,0.00019968,2]
[389143086,1759590660118,-1500.0,0.00019968,2]
[389143087,1759590660128,-1500.0,0.00019968,2]
[389143088,1759590660138,-1500.0,0.00019968,2]
[389143089,1759590660148,-1500.0,0.00019968,2]
[389143090,1759590660158,-161.63464176,0.00019999,2]
[389143091,1759590660168,-500.0,0.0002,2]
[389143092,1759590660177,-500.0,0.0002,2]
[389143093,1759590660187,-500.0,0.0002,2]
[389143094,1759590660196,-500.0,0.0002,2]
[389143095,1759590660206,-500.0,0.0002,2]
[389143096,1759590660215,-570.2,0.0002,2]
[389143097,1759590660224,-470.08892628,0.0002,2]
[389143098,1759590660234,-500.0,0.0002,2]
[389143099,1759590660243,-851.18,0.0002,2]
[389143100,1759590660253,-500.0,0.0002,2]
[389143101,1759590660263,-151.0,0.0002,2]
[389143102,1759590660272,-500.0,0.0002,2]
[389143103,1759590660281,-500.0,0.0002,2]
[389143104,1759590660290,-500.0,0.0002,2]
[389143105,1759590660300,-705.06,0.0002,2]
[389143106,1759590660309,-500.0,0.0002,2]
[389143107,1759590660318,-500.0,0.0002,2]
[389143108,1759590660327,-463.24346278,0.0002,2]
[389143109,1759590660336,-500.0,0.0002,2]
[389143110,1759590660346,-500.0,0.0002,2]
[389143111,1759590660357,-500.0,0.0002,2]
[389143112,1759590660366,-500.0,0.0002,2]
[389143113,1759590660377,-1245.62,0.0002,2]
[389143114,1759590660386,-500.0,0.0002,2]
[389143115,1759590660396,-1777.82,0.0002,2]
[389143116,1759590660405,-500.0,0.0002,2]
[389143117,1759590660415,-921.66,0.0002,2]
[389143118,1759590660424,-500.0,0.0002,2]
[389143119,1759590660434,-500.0,0.0002,2]
[389143120,1759590660443,-1196.39,0.0002,2]
[389143121,1759590660452,-500.0,0.0002,2]
[389143122,1759590660462,-500.0,0.0002,2]
[389143123,1759590660472,-500.0,0.0002,2]
[389143124,1759590660483,-529.14,0.0002,2]
[389143125,1759590660492,-500.0,0.0002,2]
[389143126,1759590660501,-534.32,0.0002,2]
[389143127,1759590660509,-500.0,0.0002,2]
[389143128,1759590660518,-500.0,0.0002,2]
[389143129,1759590660526,-1227.79,0.0002,2]
[389143130,1759590660535,-500.0,0.0002,2]
[389143131,1759590660544,-500.0,0.0002,2]
[389143132,1759590660552,-500.0,0.0002,2]
[389143133,1759590660561,-500.0,0.0002,2]
[389143134,1759590660569,-500.0,0.0002,2]
[389143135,1759590660577,-1123.99,0.0002,2]
[389143136,1759590660585,-513.6,0.0002,2]
[389143137,1759590660594,-500.0,0.0002,2]
[389143138,1759590660602,-500.0,0.0002,2]
[389143139,1759590660611,-500.0,0.0002,2]
[389143140,1759590660621,-500.0,0.0002,2]
[389143141,1759590660630,-500.0,0.0002,2]
[389143142,1759590660639,-871.48,0.0002,2]
[389143143,1759590660649,-663.01,0.0002,2]
[389143144,1759590660657,-500.0,0.0002,2]
[389143145,1759590660667,-1603.11,0.0002,2]
[389143146,1759590660676,-564.32,0.0002,2]
[389143147,1759590660686,-500.0,0.0002,2]
[389143148,1759590660696,-2830.57,0.0002,2]
[389143149,1759590660706,-500.0,0.0002,2]
[389143150,1759590660716,-500.0,0.0002,2]
[389143151,1759590660724,-500.0,0.0002,2]
[389143152,1759590660732,-443.15683303,0.0002,2]
[389143153,1759590660741,-500.0,0.0002,2]
[389143154,1759590660751,-500.0,0.0002,2]
[389143155,1759590660760,-500.0,0.0002,2]
[389143156,1759590660769,-500.0,0.0002,2]
[389143157,1759590660778,-500.0,0.0002,2]
[389143158,1759590660788,-500.0,0.0002,2]
[389143159,1759590660798,-500.0,0.0002,2]
[389143160,1759590660808,-500.0,0.0002,2]
[389143161,1759590660818,-500.0,0.0002,2]
[389143162,1759590660828,-500.0,0.0002,2]
[389143163,1759590660840,-1054.46,0.0002,2]
[389143164,1759590660851,-1656.64,0.0002,2]
[389143165,1759590660861,-151.0,0.0002,2]
[389143166,1759590660871,-500.0,0.0002,2]
[389143167,1759590660880,-151.0,0.0002,2]
[389143168,1759590660890,-151.0,0.0002,2]
[389143169,1759590660900,-500.0,0.0002,2]
[389143170,1759590660909,-500.0,0.0002,2]
[389143171,1759590660919,-500.0,0.0002,2]
[389143172,1759590660928,-500.0,0.0002,2]
[389143173,1759590660937,-163.674593,0.0002,2]
[389143174,1759590660944,-537.94,0.0002,2]
[389143175,1759590660951,-978.72,0.0002,2]
[389143176,1759590660958,-151.0,0.0002,2]
[389143177,1759590660968,-500.0,0.0002,2]
[389143178,1759590660977,-500.0,0.0002,2]
[389143179,1759590660987,-765.99,0.0002,2]
[389143180,1759590660998,-621.50103138,0.0002,2]
[389143181,1759590661008,-958.69,0.0002,2]
[389143182,1759590661019,-1025.98,0.0002,2]
[389143183,1759590661029,-562.14,0.0002,2]
[389143184,1759590661039,-500.0,0.0002,2]
[389143185,1759590661049,-500.0,0.0002,2]
[389143186,1759590661059,-500.0,0.0002,2]
[389143187,1759590661069,-450.34,0.0002,2]
[389143188,1759590661079,-533.74,0.0002,2]
[389143189,1759590661091,-500.0,0.0002,2]
[389143190,1759590661101,-500.0,0.0002,2]
[389143191,1759590661115,-709.18,0.0002,2]
[389143192,1759590661127,-375.181838,0.0002,2]
[389143193,1759590661137,-151.0,0.0002,2]
[389143194,1759590661147,-555.69,0.0002,2]
[389143195,1759590661157,-375.181838,0.0002,2]
[389143196,1759590661166,-500.0,0.0002,2]
[389143197,1759590661176,-500.0,0.0002,2]
[389143198,1759590661186,-375.181838,0.0002,2]
[389143199,1759590661196,-151.0,0.0002,2]
[389143200,1759590661205,-375.181838,0.0002,2]
[389143201,1759590661215,-508.88,0.0002,2]
[389143202,1759590661225,-664.88,0.0002,2]
[389143203,1759590661234,-500.0,0.0002,2]
[389143204,1759590661244,-500.0,0.0002,2]
[389143205,1759590661253,-3239.32,0.0002,2]
[389143206,1759590661262,-668.88,0.0002,2]
[389143207,1759590661272,-500.0,0.0002,2]
[389143208,1759590661281,-561.44,0.0002,2]
[389143209,1759590661290,-2075.26,0.0002,2]
[389143210,1759590661300,-500.0,0.0002,2]
[389143211,1759590661310,-500.0,0.0002,2]
[389143212,1759590661319,-151.0,0.0002,2]
[389143213,1759590661328,-442.67511379,0.0002,2]
[389143214,1759590661337,-500.0,0.0002,2]
[389143215,1759590661347,-500.0,0.0002,2]
[389143216,1759590661356,-500.0,0.0002,2]
[389143217,1759590661366,-500.0,0.0002,2]
[389143218,1759590661375,-500.0,0.0002,2]
[389143219,1759590661384,-1601.94,0.0002,2]
[389143220,1759590661394,-500.0,0.0002,2]
[389143221,1759590661404,-500.0,0.0002,2]
[389143222,1759590661413,-706.43,0.0002,2]
[389143223,1759590661423,-500.0,0.0002,2]
[389143224,1759590661433,-529.06,0.0002,2]
[389143225,1759590661442,-500.0,0.0002,2]
[389143226,1759590661451,-748.01,0.0002,2]
[389143227,1759590661460,-500.0,0.0002,2]
[389143228,1759590661470,-500.0,0.0002,2]
[389143229,1759590661479,-151.0,0.0002,2]
[389143230,1759590661489,-805.25,0.0002,2]
[389143231,1759590661498,-877.35,0.0002,2]
[389143232,1759590661509,-810.89,0.0002,2]
[389143233,1759590661518,-500.0,0.0002,2]
[389143234,1759590661528,-500.0,0.0002,2]
[389143235,1759590661538,-840.23,0.0002,2]
[389143236,1759590661547,-151.0,0.0002,2]
[389143237,1759590661557,-500.0,0.0002,2]
[389143238,1759590661567,-151.0,0.0002,2]
[389143239,1759590661577,-153.024855,0.0002,2]
[389143240,1759590661587,-500.0,0.0002,2]
[389143241,1759590661597,-151.0,0.0002,2]
[389143242,1759590661607,-151.0,0.0002,2]
[389143243,1759590661617,-500.0,0.0002,2]
[389143244,1759590661627,-500.0,0.0002,2]
[389143245,1759590661637,-500.0,0.0002,2]
[389143246,1759590661646,-500.0,0.0002,2]
[389143247,1759590661656,-842.15,0.0002,2]
[389143248,1759590661665,-500.0,0.0002,2]
[389143249,1759590661674,-2848.24,0.0002,2]
[389143250,1759590661684,-966.97,0.0002,2]
[389143251,1759590661695,-500.0,0.0002,2]
[389143252,1759590661704,-346.33295774,0.0002,2]
[389143253,1759590661714,-1140.91,0.0002,2]
[389143254,1759590661724,-500.0,0.0002,2]
[389143255,1759590661734,-551.2175941,0.0002,2]
[389143256,1759590661745,-1360.8,0.0002,2]
[389143257,1759590661755,-151.0,0.0002,2]
[389143258,1759590661765,-609.28,0.0002,2]
[389143259,1759590661776,-500.0,0.0002,2]
[389143260,1759590661786,-500.0,0.0002,2]
[389143261,1759590661796,-500.0,0.0002,2]
[389143262,1759590661807,-188.171782,0.0002,2]
[389143263,1759590661817,-500.0,0.0002,2]
[389143264,1759590661826,-188.171782,0.0002,2]
[389143265,1759590661838,-500.0,0.0002,2]
[389143266,1759590661848,-188.171782,0.0002,2]
[389143267,1759590661858,-188.171782,0.0002,2]
[389143268,1759590661869,-500.0,0.0002,2]
[389143269,1759590661879,-500.0,0.0002,2]
[389143270,1759590661889,-645.8,0.0002,2]
[389143271,1759590661902,-500.0,0.0002,2]
[389143272,1759590661912,-151.0,0.0002,2]
[389143273,1759590661923,-151.0,0.0002,2]
[389143274,1759590661933,-165.579866,0.0002,2]
[389143275,1759590661942,-151.0,0.0002,2]
[389143276,1759590661952,-165.579866,0.0002,2]
[389143277,1759590661963,-151.0,0.0002,2]
[389143278,1759590661981,-977.77,0.0002,2]
[389143279,1759590661998,-958.93,0.0002,2]
[389143280,1759590662008,-165.579866,0.0002,2]
[389143281,1759590662017,-151.0,0.0002,2]
[389143282,1759590662027,-151.0,0.0002,2]
[389143283,1759590662036,-165.579866,0.0002,2]
[389143284,1759590662046,-151.0,0.0002,2]
[389143285,1759590662055,-500.0,0.0002,2]
[389143286,1759590662071,-500.0,0.0002,2]
[389143287,1759590662080,-1323.11,0.0002,2]
[389143288,1759590662089,-500.0,0.0002,2]
[389143289,1759590662098,-500.0,0.0002,2]
[389143290,1759590662109,-500.0,0.0002,2]
[389143291,1759590662119,-500.0,0.0002,2]
[389143292,1759590662129,-1856.22,0.0002,2]
[389143293,1759590662139,-1749.05,0.0002,2]
[389143294,1759590662148,-768.13,0.0002,2]
[389143295,1759590662158,-500.0,0.0002,2]
[389143296,1759590662167,-388.77467103,0.0002,2]
[389143297,1759590662178,-170.871397,0.0002,2]
[389143298,1759590662187,-170.871397,0.0002,2]
[389143299,1759590662196,-170.871397,0.0002,2]
[389143300,1759590662205,-170.871397,0.0002,2]
[389143301,1759590662214,-151.0,0.0002,2]
[389143302,1759590662223,-500.0,0.0002,2]
[389143303,1759590662233,-511.85530165,0.0002,2]
[389143304,1759590662244,-500.0,0.0002,2]
[389143305,1759590662254,-151.0,0.0002,2]
[389143306,1759590662264,-151.0,0.0002,2]
[389143307,1759590662275,-732.2,0.0002,2]
[389143308,1759590662285,-500.0,0.0002,2]
[389143309,1759590662295,-1738.11,0.0002,2]
[389143310,1759590662304,-151.0,0.0002,2]
[389143311,1759590662312,-151.0,0.0002,2]
[389143312,1759590662322,-678.445089,0.0002,2]
[389143313,1759590662331,-500.0,0.0002,2]
[389143314,1759590662341,-151.0,0.0002,2]
[389143315,1759590662350,-678.445089,0.0002,2]
[389143316,1759590662359,-500.0,0.0002,2]
[389143317,1759590662369,-678.445089,0.0002,2]
[389143318,1759590662380,-678.445089,0.0002,2]
[389143319,1759590662389,-3015.62,0.0002,2]
[389143320,1759590662399,-500.0,0.0002,2]
[389143321,1759590662408,-1097.18,0.0002,2]
[389143322,1759590662418,-500.0,0.0002,2]
[389143323,1759590662428,-478.534729,0.0002,2]
[389143324,1759590662437,-478.534729,0.0002,2]
[389143325,1759590662447,-500.0,0.0002,2]
[389143326,1759590662456,-478.534729,0.0002,2]
[389143327,1759590662465,-478.534729,0.0002,2]
[389143328,1759590662475,-1095.04,0.0002,2]
[389143329,1759590662484,-151.0,0.0002,2]
[389143330,1759590662493,-151.0,0.0002,2]
[389143331,1759590662503,-151.0,0.0002,2]
[389143332,1759590662512,-151.0,0.0002,2]
[389143333,1759590662522,-151.0,0.0002,2]
[389143334,1759590662531,-151.0,0.0002,2]
[389143335,1759590662540,-500.0,0.0002,2]
[389143336,1759590662549,-3353.07,0.0002,2]
[389143337,1759590662559,-151.0,0.0002,2]
[389143338,1759590662569,-500.0,0.0002,2]
[389143339,1759590662579,-151.0,0.0002,2]
[389143340,1759590662588,-500.0,0.0002,2]
[389143341,1759590662597,-500.0,0.0002,2]
[389143342,1759590662606,-151.0,0.0002,2]
[389143343,1759590662616,-500.0,0.0002,2]
[389143344,1759590662625,-979.87,0.0002,2]
[389143345,1759590662635,-500.0,0.0002,2]
[389143346,1759590662644,-500.0,0.0002,2]
[389143347,1759590662653,-151.0,0.0002,2]
[389143348,1759590662662,-556.58,0.0002,2]
[389143349,1759590662671,-151.0,0.0002,2]
[389143350,1759590662682,-251.601964,0.0002,2]
[389143351,1759590662691,-251.601964,0.0002,2]
[389143352,1759590662700,-251.601964,0.0002,2]
[389143353,1759590662709,-500.0,0.0002,2]
[389143354,1759590662720,-602.05,0.0002,2]
[389143355,1759590662729,-251.601964,0.0002,2]
[389143356,1759590662738,-669.17,0.0002,2]
[389143357,1759590662747,-2444.68,0.0002,2]
[389143358,1759590662757,-700.63,0.0002,2]
[389143359,1759590662893,-500.0,0.0002,2]
[389143360,1759590662903,-1487.34,0.0002,2]
[389143361,1759590662912,-163.02676,0.0002,2]
[389143362,1759590662922,-163.02676,0.0002,2]
[389143363,1759590662932,-501.72,0.0002,2]
[389143364,1759590662942,-163.02676,0.0002,2]
[389143365,1759590662952,-809.98,0.0002,2]
[389143366,1759590662961,-163.02676,0.0002,2]
[389143367,1759590662972,-3003.58,0.0002,2]